fUSD/lending_fUSD_20241001
["ID","MTS","AMOUNT","RATE_DAILY","PERIOD"]
[339632435,1727771173541,500.0,0.00021999,120]
[339632436,1727771173838,500.0,0.00021999,120]
[339632437,1727771174429,500.0,0.00021999,120]
[339632438,1727771174689,525.65910592,0.00021999,120]
[339632445,1727771178672,505.492781,0.00021999,120]
[339632449,1727771182249,500.0,0.00021999,120]
[339632450,1727771182525,500.0,0.00021999,120]
[339632451,1727771182770,500.0,0.00021999,120]
[339632452,1727771183071,193.9400868,0.00021999,120]
[339632457,1727771187068,500.0,0.00021999,120]
[339632458,1727771187372,500.0,0.00021999,120]
[339632459,1727771187656,500.0,0.00021999,120]
[339632460,1727771187921,500.0,0.00021999,120]
[339632462,1727771188206,500.0,0.00021999,120]
[339632463,1727771188461,505.23921558,0.00021999,120]
[339632466,1727771189886,500.0,0.00021999,120]
[339632468,1727771190174,503.24899401,0.00021999,120]
[339632470,1727771190591,500.0,0.00021999,120]
[339632471,1727771191231,500.0,0.00021999,120]
[339632472,1727771191515,500.0,0.00021999,120]
[339632473,1727771191790,315.38511976,0.00021999,120]
[339632479,1727771197905,500.0,0.00021999,120]
[339632480,1727771198158,500.0,0.00021999,120]
[339632481,1727771198282,500.0,0.00021999,120]
[339632482,1727771198414,500.0,0.00021999,120]
[339632483,1727771198538,500.0,0.00021999,120]
[339632484,1727771198673,500.0,0.00021999,120]
[339632485,1727771198799,500.0,0.00021999,120]
[339632486,1727771198929,160.85475074,0.00021999,120]
[339632487,1727771199200,500.0,0.00021999,120]
[339632489,1727771199868,500.0,0.00021999,120]
[339632490,1727771200117,500.0,0.00021999,120]
[339632491,1727771200395,513.59884607,0.00021999,120]
[339632495,1727771204168,500.0,0.00021999,120]
[339632496,1727771204460,500.0,0.00021999,120]
[339632497,1727771204732,500.0,0.00021999,120]
[339632498,1727771204988,500.0,0.00021999,120]
[339632500,1727771205255,500.0,0.00021999,120]
[339632501,1727771205504,500.0,0.00021999,120]
[339632502,1727771205748,500.0,0.00021999,120]
[339632504,1727771206178,500.0,0.00021999,120]
[339632505,1727771206287,500.0,0.00021999,120]
[339632506,1727771206571,500.0,0.00021999,120]
[339632507,1727771206832,500.0,0.00021999,120]
[339632508,1727771207116,502.77650896,0.00021999,120]
[339632515,1727771211671,150.0,9.667e-05,2]
[339632516,1727771211692,150.0,9.667e-05,2]
[339632517,1727771211715,150.0,9.667e-05,2]
[339632518,1727771211735,150.0,9.667e-05,2]
[339632519,1727771211756,150.0,9.667e-05,2]
[339632520,1727771211777,50.0,9.667e-05,2]
[339632522,1727771214680,500.0,0.00021999,120]
[339632523,1727771214964,537.92964436,0.00021999,120]
[339632535,1727771226916,500.0,0.00021999,120]
[339632536,1727771227190,500.0,0.00021999,120]
[339632538,1727771227475,500.0,0.00021999,120]
[339632539,1727771228074,500.0,0.00021999,120]
[339632541,1727771228360,500.0,0.00021999,120]
[339632542,1727771228663,500.0,0.00021999,120]
[339632543,1727771228991,500.0,0.00021999,120]
[339632544,1727771229247,500.0,0.00021999,120]
[339632545,1727771229539,500.0,0.00021999,120]
[339632547,1727771229811,500.0,0.00021999,120]
[339632548,1727771230089,500.0,0.00021999,120]
[339632549,1727771230703,178.62532157,0.00021999,120]
[339632569,1727771251356,443.12,9.682e-05,2]
[339632606,1727771295686,501.94603453,0.00021999,120]
[339632628,1727771317556,500.0,0.00021999,120]
[339632629,1727771317826,500.0,0.00021999,120]
[339632630,1727771318118,500.0,0.00021999,120]
[339632631,1727771318368,207.97981679,0.00021999,120]
[339632637,1727771324632,6808.90642808,0.00021,60]
[339632676,1727771362732,-150.0,0.00010014,2]
[339632677,1727771362755,-250.0,0.00010056,2]
[339632678,1727771362778,-150.0,0.00010057,2]
[339632679,1727771362800,-700.0,0.00010068,2]
[339632680,1727771362825,-314.88,0.00010069,2]
[339632681,1727771362847,-169.49,0.00010094,2]
[339632682,1727771362871,-300.0,0.00010097,2]
[339632683,1727771362894,-10353.95444789,0.00010098,2]
[339632701,1727771380974,500.0,0.00021999,120]
[339632702,1727771381260,500.0,0.00021999,120]
[339632704,1727771381519,500.0,0.00021999,120]
[339632705,1727771381855,500.0,0.00021999,120]
[339632706,1727771382129,500.0,0.00021999,120]
[339632707,1727771382417,500.0,0.00021999,120]
[339632708,1727771382686,500.0,0.00021999,120]
[339632711,1727771382968,584.18974311,0.00021999,120]
[339632729,1727771400243,573.24,0.00021999,120]
[339632731,1727771400592,573.24,0.00021999,120]
[339632733,1727771400884,573.24,0.00021999,120]
[339632734,1727771401189,573.24,0.00021999,120]
[339632736,1727771401493,573.24,0.00021999,120]
[339632737,1727771401775,573.24,0.00021999,120]
[339632739,1727771402093,573.24,0.00021999,120]
[339632740,1727771402417,573.24,0.00021999,120]
[339632741,1727771402710,573.24,0.00021999,120]
[339632742,1727771402999,573.24,0.00021999,120]
[339632743,1727771403322,573.24,0.00021999,120]
[339632744,1727771403656,573.24,0.00021999,120]
[339632746,1727771403932,573.24,0.00021999,120]
[339632747,1727771404250,573.24,0.00021999,120]
[339632748,1727771404601,573.24,0.00021999,120]
[339632749,1727771405047,573.24,0.00021999,120]
[339632750,1727771405172,573.24,0.00021999,120]
[339632751,1727771405706,573.24,0.00021999,120]
[339632752,1727771405765,573.24,0.00021999,120]
[339632754,1727771406041,573.24,0.00021999,120]
[339632755,1727771406316,573.24,0.00021999,120]
[339632756,1727771406932,573.24,0.00021999,120]
[339632758,1727771407207,573.24,0.00021999,120]
[339632760,1727771407606,573.4691561,0.00021999,120]
[339632803,1727771432338,-500.0,0.00010098,2]
[339632804,1727771432396,-9423.99800782,0.00010098,2]
[339632805,1727771432456,-1231.85132041,0.00010098,2]
[339632806,1727771432467,-311.84172578,0.00010098,2]
[339632807,1727771432478,-417.3844981,0.00010098,2]
[339632808,1727771432487,-150.0,0.00010099,2]
[339632809,1727771432497,-150.64,0.00010113,2]
[339632810,1727771432507,-115.33552022,0.00010117,2]
[339632811,1727771432520,-84.66447978,0.00010117,2]
[339632812,1727771432529,-499.99,0.00010117,2]
[339632813,1727771432539,-150.0,0.00010141,2]
[339632814,1727771432548,-62.23968325,0.00010183,2]
[339632815,1727771432560,-87.76031675,0.00010183,2]
[339632816,1727771432569,-483.76083823,0.00010194,2]
[339632817,1727771432631,-266.23916177,0.00010194,2]
[339632818,1727771432641,-150.0,0.00010226,2]
[339632819,1727771432650,-150.0,0.00010268,2]
[339632820,1727771432659,-150.0,0.0001031,2]
[339632821,1727771432668,-150.0,0.00010352,2]
[339632822,1727771432678,-150.0,0.00010395,2]
[339632823,1727771432687,-150.0,0.00010437,2]
[339632824,1727771432696,-150.0,0.00010479,2]
[339632825,1727771432705,-398.48695601,0.00010484,2]
[339632826,1727771432717,-33.07304399,0.00010484,2]
[339632827,1727771432726,-150.0,0.00010521,2]
[339632828,1727771432735,-150.0,0.00010564,2]
[339632829,1727771432745,-150.0,0.00010599,2]
[339632830,1727771432754,-532.95,0.000106,2]
[339632831,1727771432763,-533.85,0.000106,2]
[339632832,1727771432773,-300.39,0.000106,2]
[339632833,1727771432782,-301.34,0.000106,2]
[339632834,1727771432792,-933.72,0.000106,2]
[339632835,1727771432801,-301.14,0.000106,2]
[339632836,1727771432810,-860.75,0.000106,2]
[339632838,1727771432819,-719.73,0.000106,2]
[339632839,1727771432829,-152.33,0.000106,2]
[339632840,1727771432841,-150.0,0.00010606,2]
[339632841,1727771432850,-150.0,0.00010648,2]
[339632842,1727771432860,-150.0,0.00010691,2]
[339632843,1727771432869,-150.0,0.00010733,2]
[339632844,1727771432878,-150.0,0.00010775,2]
[339632845,1727771432888,-150.0,0.00010817,2]
[339632846,1727771432897,-150.0,0.0001086,2]
[339632847,1727771432906,-800.0,0.00010875,2]
[339632848,1727771432916,-6309.42137716,0.0001089,2]
[339632849,1727771432925,-2500.0,0.00010895,2]
[339632850,1727771432935,-3929.0473,0.00010898,2]
[339632851,1727771432945,-1354.2845,0.00010898,2]
[339632852,1727771432955,-420.4981,0.000109,2]
[339632853,1727771432965,-2117.5066,0.000109,2]
[339632854,1727771432974,-3059.8392,0.000109,2]
[339632855,1727771432983,-263.04,0.000109,2]
[339632856,1727771432992,-61239.48,0.000109,2]
[339632857,1727771433001,-166.02661025,0.000109,2]
[339632858,1727771433011,-167.69038639,0.000109,2]
[339632859,1727771433021,-163.90590921,0.000109,2]
[339632860,1727771433030,-3841.92444783,0.000109,2]
[339632861,1727771433046,-638.32787279,0.000109,2]
[339632862,1727771433055,-1014.0,0.000109,2]
[339632863,1727771433065,-1509.87212721,0.000109,2]
[339632864,1727771433076,-332.75527609,0.000109,2]
[339632866,1727771433123,-514.17812948,0.000109,2]
[339632867,1727771433135,-6997.28113178,0.000109,2]
[339632868,1727771433145,-150.0,0.00010902,2]
[339632869,1727771433154,-500.0,0.00010911,2]
[339632870,1727771433164,-500.0,0.00010912,2]
[339632871,1727771433174,-150.0,0.00010944,2]
[339632872,1727771433183,-160.81,0.00010959,2]
[339632873,1727771433193,-250.0,0.00010959,2]
[339632874,1727771433202,-1500.0,0.00010959,2]
[339632875,1727771433212,-433.6,0.00010959,2]
[339632876,1727771433221,-164.24,0.00010959,2]
[339632877,1727771433231,-821.25,0.00010959,2]
[339632878,1727771433241,-500.0,0.00010973,2]
[339632879,1727771433251,-500.0,0.00010973,2]
[339632880,1727771433262,-157.94662144,0.00010986,2]
[339632881,1727771433271,-152.3,0.0001099,2]
[339632882,1727771433282,-710.71528947,0.00010995,2]
[339632889,1727771438129,500.0,0.00021999,120]
[339632890,1727771438382,500.0,0.00021999,120]
[339632891,1727771438395,-740.34726879,0.00010995,2]
[339632892,1727771438455,-1363.28313491,0.00010995,2]
[339632894,1727771438467,-303.16003,0.00010995,2]
[339632895,1727771438479,-315.0,0.00010995,2]
[339632896,1727771438520,-2808.64383313,0.00010995,2]
[339632897,1727771438529,-17584.87665929,0.00010995,2]
[339632898,1727771438540,-1248.82727493,0.00010995,2]
[339632899,1727771438686,-1130.278736,0.00010995,2]
[339632900,1727771438697,-23406.47410261,0.00010995,2]
[339632901,1727771438708,-68592.48254036,0.00010995,2]
[339632902,1727771438719,-12073.81524121,0.00010995,2]
[339632903,1727771438729,-1000.0,0.00010999,2]
[339632904,1727771438739,-1000.0,0.00010999,2]
[339632905,1727771438749,-500.0,0.00010999,2]
[339632906,1727771438759,-500.0,0.00010999,2]
[339632907,1727771438769,-517.97468063,0.00010999,2]
[339632908,1727771438778,-514.20407535,0.00011,2]
[339632909,1727771438788,-11022.65725105,0.00011,2]
[339632910,1727771438801,-938.99729281,0.00011,2]
[339632911,1727771438812,-979.9270822,0.00011,2]
[339632912,1727771438823,-314.43955056,0.00011,2]
[339632913,1727771438836,-2222.34255927,0.00011,2]
[339632914,1727771438847,-703.20536157,0.00011,2]
[339632915,1727771438888,500.0,0.00021999,120]
[339632916,1727771438901,-30337.62549653,0.00011,2]
[339632917,1727771438912,-430.48305069,0.00011,2]
[339632918,1727771438923,-19066.24339577,0.00011,2]
[339632919,1727771438934,-2193.60921575,0.00011,2]
[339632920,1727771438944,-1335.85121143,0.00011,2]
[339632921,1727771438955,-2076.34305428,0.00011,2]
[339632922,1727771438966,-3007.22553722,0.00011,2]
[339632923,1727771438977,-12680.68088358,0.00011,2]
[339632924,1727771438988,-68524.82563262,0.00011,2]
[339632925,1727771438997,-6404.3585986,0.00011,2]
[339632926,1727771439010,-1954.87549614,0.00011,2]
[339632927,1727771439020,-1362.07271568,0.00011,2]
[339632928,1727771439070,500.0,0.00021999,120]
[339632929,1727771439155,500.0,0.00021999,120]
[339632930,1727771439483,500.0,0.00021999,120]
[339632933,1727771440144,500.0,0.00021999,120]
[339632938,1727771440298,-583.86285183,0.00011,2]
[339632939,1727771440310,-24929.11631104,0.00011,2]
[339632940,1727771440323,-13120.0,0.00011,2]
[339632941,1727771440359,-187080.7967188,0.00011,2]
[339632942,1727771440371,-1092.27862809,0.00011,2]
[339632943,1727771440383,-137085.91014143,0.00011,2]
[339632944,1727771440395,-2409.35153101,0.00011,2]
[339632945,1727771440420,-7180.06767896,0.00011,2]
[339632946,1727771440431,-59687.47526315,0.00011,2]
[339632947,1727771440443,-606.26586823,0.00011,2]
[339632948,1727771440454,-923.08443828,0.00011,2]
[339632949,1727771440465,-1103.41846136,0.00011,2]
[339632950,1727771440477,-24177.90255761,0.00011,2]
[339632951,1727771440498,-735.22558336,0.00011,2]
[339632953,1727771440509,-576.99,0.00011,2]
[339632954,1727771440521,-538867.72621972,0.00011,2]
[339632955,1727771440545,-1608.91586877,0.00011,2]
[339632956,1727771440556,-467.84357261,0.00011,2]
[339632957,1727771440568,-3116.76815216,0.00011,2]
[339632958,1727771440608,-5380.48614854,0.00011,2]
[339632959,1727771440619,-63394.02948113,0.00011,2]
[339632960,1727771440631,-29574.57782437,0.00011,2]
[339632961,1727771440646,-17763.29560768,0.00011,2]
[339632962,1727771440708,500.0,0.00021999,120]
[339632963,1727771440979,500.0,0.00021999,120]
[339632965,1727771441231,500.0,0.00021999,120]
[339632966,1727771441497,500.0,0.00021999,120]
[339632967,1727771441781,237.13279794,0.00021999,120]
[339632981,1727771443509,-1593.8,0.00011,2]
[339632982,1727771443676,-11066.95702597,0.00011,2]
[339632983,1727771443788,-373041.68254731,0.00011,2]
[339633001,1727771445550,500.0,0.00021999,120]
[339633002,1727771445817,500.0,0.00021999,120]
[339633005,1727771446207,500.0,0.00021999,120]
[339633006,1727771446320,-800.0,0.00010068,2]
[339633007,1727771446330,-948.03062998,0.00011,2]
[339633011,1727771447286,500.0,0.00021999,120]
[339633013,1727771447365,-2957.34949861,0.00011,2]
[339633014,1727771447380,-525.8013276,0.00011,2]
[339633015,1727771447424,500.0,0.00021999,120]
[339633016,1727771447471,500.0,0.00021999,120]
[339633017,1727771447518,500.0,0.00021999,120]
[339633019,1727771447841,324.75887517,0.00021999,120]
[339633036,1727771459581,500.0,0.00021999,120]
[339633037,1727771459856,500.0,0.00021999,120]
[339633038,1727771460267,500.0,0.00021999,120]
[339633039,1727771460471,500.0,0.00021999,120]
[339633040,1727771460525,500.0,0.00021999,120]
[339633042,1727771460632,150.0,8.972e-05,2]
[339633043,1727771460654,150.0,8.972e-05,2]
[339633044,1727771460673,150.0,8.972e-05,2]
[339633045,1727771460693,50.0,8.972e-05,2]
[339633046,1727771460740,500.0,0.00021999,120]
[339633047,1727771460789,500.0,0.00021999,120]
[339633048,1727771460996,175.999997,0.00021999,120]
[339633049,1727771461063,500.0,0.00021999,120]
[339633050,1727771461315,500.0,0.00021999,120]
[339633052,1727771461651,500.0,0.00021999,120]
[339633053,1727771461981,500.0,0.00021999,120]
[339633054,1727771462311,500.0,0.00021999,120]
[339633056,1727771462613,500.0,0.00021999,120]
[339633057,1727771462883,500.0,0.00021999,120]
[339633058,1727771463152,481.80040293,0.00021999,120]
[339633070,1727771469825,500.0,0.00022,120]
[339633073,1727771472279,150.0,8.972e-05,2]
[339633074,1727771472299,150.0,8.972e-05,2]
[339633075,1727771472320,150.0,8.972e-05,2]
[339633076,1727771472341,50.0,8.972e-05,2]
[339633078,1727771473538,500.0,0.00021999,120]
[339633080,1727771473829,500.0,0.00021999,120]
[339633082,1727771474367,500.0,0.00021999,120]
[339633083,1727771474737,500.0,0.00021999,120]
[339633085,1727771475019,500.0,0.00021999,120]
[339633086,1727771475298,500.0,0.00021999,120]
[339633089,1727771475560,500.0,0.00021999,120]
[339633090,1727771475825,500.0,0.00021999,120]
[339633091,1727771476077,500.0,0.00021999,120]
[339633092,1727771476330,595.01210418,0.00021999,120]
[339633098,1727771478286,500.0,0.00021999,120]
[339633099,1727771478564,500.0,0.00021999,120]
[339633100,1727771478841,500.0,0.00021999,120]
[339633101,1727771479410,500.0,0.00021999,120]
[339633103,1727771479852,500.0,0.00021999,120]
[339633104,1727771480153,500.0,0.00021999,120]
[339633105,1727771480407,500.0,0.00021999,120]
[339633107,1727771480769,500.0,0.00021999,120]
[339633108,1727771481040,500.0,0.00021999,120]
[339633112,1727771481343,500.0,0.00021999,120]
[339633113,1727771481618,500.0,0.00021999,120]
[339633114,1727771481874,500.0,0.00021999,120]
[339633115,1727771482172,363.352527,0.00021999,120]
[339633125,1727771490703,500.0,0.00021999,120]
[339633126,1727771490962,500.0,0.00021999,120]
[339633127,1727771491247,500.0,0.00021999,120]
[339633129,1727771491522,500.0,0.00021999,120]
[339633130,1727771491807,500.0,0.00021999,120]
[339633132,1727771492080,500.0,0.00021999,120]
[339633133,1727771492361,500.0,0.00021999,120]
[339633134,1727771492634,500.0,0.00021999,120]
[339633135,1727771492910,500.0,0.00021999,120]
[339633137,1727771493396,500.0,0.00021999,120]
[339633138,1727771493661,500.0,0.00021999,120]
[339633139,1727771493912,500.0,0.00021999,120]
[339633141,1727771494158,500.0,0.00021999,120]
[339633142,1727771494202,500.0,0.00021999,120]
[339633143,1727771494432,200.18085556,0.00021999,120]
[339633144,1727771494476,504.87104723,0.00021999,120]
[339633146,1727771494945,500.0,0.00021999,120]
[339633147,1727771495242,500.0,0.00021999,120]
[339633148,1727771495518,500.0,0.00021999,120]
[339633149,1727771495769,583.35,0.00021999,120]
[339633164,1727771503196,150.0,8.972e-05,2]
[339633165,1727771503219,150.0,8.972e-05,2]
[339633166,1727771503241,150.0,8.972e-05,2]
[339633167,1727771503263,150.0,8.972e-05,2]
[339633168,1727771503285,268.95886264,8.972e-05,2]
[339633169,1727771503308,31.04113736,8.972e-05,2]
[339633211,1727771530978,500.0,0.00021999,120]
[339633242,1727771550288,7407.8899,9.991e-05,2]
[339633247,1727771551117,500.0,0.00021999,120]
[339633250,1727771551387,500.56977663,0.00021999,120]
[339633251,1727771551429,500.0,0.00021999,120]
[339633252,1727771551679,500.0,0.00021999,120]
[339633255,1727771551938,500.0,0.00021999,120]
[339633257,1727771552211,500.0,0.00021999,120]
[339633259,1727771552491,500.0,0.00021999,120]
[339633261,1727771552771,500.0,0.00021999,120]
[339633265,1727771553051,500.0,0.00021999,120]
[339633267,1727771553505,500.0,0.00021999,120]
[339633268,1727771553613,169.40113096,0.00021999,120]
[339633279,1727771555811,500.0,0.00021999,120]
[339633280,1727771556072,500.0,0.00021999,120]
[339633281,1727771556366,500.0,0.00021999,120]
[339633282,1727771556666,500.0,0.00021999,120]
[339633284,1727771556919,500.0,0.00021999,120]
[339633285,1727771557177,500.0,0.00021999,120]
[339633286,1727771557272,283.71464718,0.00021999,120]
[339633288,1727771557443,500.0,0.00021999,120]
[339633290,1727771557710,500.0,0.00021999,120]
[339633291,1727771557995,500.0,0.00021999,120]
[339633292,1727771558256,345.77148162,0.00021999,120]
[339633294,1727771559232,500.0,0.00021999,120]
[339633296,1727771559515,500.0,0.00021999,120]
[339633297,1727771559866,500.0,0.00021999,120]
[339633298,1727771560080,500.0,0.00021999,120]
[339633301,1727771560369,500.0,0.00021999,120]
[339633302,1727771560508,500.0,0.00021999,120]
[339633303,1727771560787,500.0,0.00021999,120]
[339633305,1727771561051,507.63233191,0.00021999,120]
[339633310,1727771563078,500.0,0.00021999,120]
[339633312,1727771563338,500.0,0.00021999,120]
[339633313,1727771563591,504.10801187,0.00021999,120]
[339633318,1727771565633,500.0,0.00021999,120]
[339633319,1727771565920,505.59217846,0.00021999,120]
[339633321,1727771566195,500.0,0.00021999,120]
[339633322,1727771566562,500.0,0.00021999,120]
[339633323,1727771566840,500.0,0.00021999,120]
[339633324,1727771567149,500.0,0.00021999,120]
[339633327,1727771567409,505.30139672,0.00021999,120]
[339633330,1727771568382,500.0,0.00021999,120]
[339633331,1727771569003,500.0,0.00021999,120]
[339633333,1727771569263,505.24005819,0.00021999,120]
[339633338,1727771571343,500.0,0.00021999,120]
[339633341,1727771571653,500.0,0.00021999,120]
[339633342,1727771571928,500.72208331,0.00021999,120]
[339633347,1727771573527,500.0,0.00021999,120]
[339633348,1727771573801,500.0,0.00021999,120]
[339633349,1727771574047,504.44914243,0.00021999,120]
[339633351,1727771575466,500.0,0.00021999,120]
[339633352,1727771575738,500.0,0.00021999,120]
[339633353,1727771575978,500.0,0.00021999,120]
[339633355,1727771576230,500.0,0.00021999,120]
[339633356,1727771576272,296.04771104,0.00021999,120]
[339633357,1727771576517,500.0,0.00021999,120]
[339633359,1727771576768,559.65251302,0.00021999,120]
[339633363,1727771578409,500.0,0.00021999,120]
[339633365,1727771578694,500.0,0.00021999,120]
[339633366,1727771578940,500.0,0.00021999,120]
[339633367,1727771579185,500.0,0.00021999,120]
[339633368,1727771579233,500.0,0.00021999,120]
[339633369,1727771579272,500.0,0.00021999,120]
[339633370,1727771579460,505.07314925,0.00021999,120]
[339633371,1727771579531,502.02024119,0.00021999,120]
[339633373,1727771581649,500.0,0.00021999,120]
[339633375,1727771582302,500.0,0.00021999,120]
[339633377,1727771582949,500.0,0.00021999,120]
[339633379,1727771583237,500.0,0.00021999,120]
[339633380,1727771583482,500.0,0.00021999,120]
[339633382,1727771583749,500.0,0.00021999,120]
[339633384,1727771584022,503.14980325,0.00021999,120]
[339633388,1727771585258,500.0,0.00021999,120]
[339633389,1727771585500,500.0,0.00021999,120]
[339633390,1727771585771,500.0,0.00021999,120]
[339633391,1727771586028,500.0,0.00021999,120]
[339633392,1727771586125,500.0,0.00021999,120]
[339633393,1727771586426,500.0,0.00021999,120]
[339633396,1727771586692,500.0,0.00021999,120]
[339633397,1727771586969,158.4610803,0.00021999,120]
[339633411,1727771592545,293.59,9.981e-05,2]
[339633412,1727771592566,150.0,9.981e-05,2]
[339633413,1727771592588,1437.47936802,9.981e-05,2]
[339633415,1727771592747,500.0,0.00021999,120]
[339633418,1727771592995,500.0,0.00021999,120]
[339633420,1727771593260,500.0,0.00021999,120]
[339633423,1727771593528,507.71411109,0.00021999,120]
[339633437,1727771601554,500.0,0.00021999,120]
[339633439,1727771601808,500.0,0.00021999,120]
[339633440,1727771602074,494.52813486,0.00021999,120]
[339633444,1727771604406,500.0,0.00021999,120]
[339633446,1727771604669,500.0,0.00021999,120]
[339633447,1727771604919,500.0,0.00021999,120]
[339633449,1727771605218,463.00965548,0.00021999,120]
[339633455,1727771608533,503.12838264,0.00021999,120]
[339633473,1727771614835,150.0,9.99e-05,2]
[339633474,1727771614856,150.0,9.99e-05,2]
[339633475,1727771614877,150.0,9.99e-05,2]
[339633476,1727771614897,150.0,9.99e-05,2]
[339633477,1727771614917,150.0,9.99e-05,2]
[339633478,1727771614937,150.0,9.99e-05,2]
[339633479,1727771614956,150.0,9.99e-05,2]
[339633480,1727771614977,150.0,9.99e-05,2]
[339633481,1727771614997,150.0,9.99e-05,2]
[339633482,1727771615017,150.0,9.99e-05,2]
[339633483,1727771615037,150.0,9.99e-05,2]
[339633484,1727771615057,150.0,9.99e-05,2]
[339633485,1727771615077,150.0,9.99e-05,2]
[339633486,1727771615101,265.78,9.99e-05,2]
[339633487,1727771615123,4739.45831352,9.99e-05,2]
[339633494,1727771617296,534.08,8.245e-05,2]
[339633495,1727771617725,6532.1768,9.99e-05,2]
[339633502,1727771621325,504.25551066,0.00021999,120]
[339633508,1727771623739,503.45705249,0.00021999,120]
[339633517,1727771630174,500.0,0.00021999,120]
[339633519,1727771630578,500.0,0.00021999,120]
[339633520,1727771630830,500.0,0.00021999,120]
[339633521,1727771631273,500.0,0.00021999,120]
[339633522,1727771631373,505.39602226,0.00021999,120]
[339633534,1727771639982,500.0,0.00021999,120]
[339633535,1727771640611,500.77112363,0.00021999,120]
[339633537,1727771641029,500.0,0.00021999,120]
[339633538,1727771641430,500.0,0.00021999,120]
[339633539,1727771641746,500.0,0.00021999,120]
[339633540,1727771641807,505.53079861,0.00021999,120]
[339633559,1727771652191,500.0,0.00021999,120]
[339633562,1727771652454,500.0,0.00021999,120]
[339633563,1727771652741,202.2523713,0.00021999,120]
[339633564,1727771653278,520.1076062,0.00021999,120]
[339633569,1727771654770,500.0,0.00021999,120]
[339633571,1727771655043,500.0,0.00021999,120]
[339633572,1727771655297,500.0,0.00021999,120]
[339633573,1727771655566,500.0,0.00021999,120]
[339633574,1727771655830,500.0,0.00021999,120]
[339633576,1727771656108,500.0,0.00021999,120]
[339633578,1727771656365,530.22045784,0.00021999,120]
[339633583,1727771658729,500.0,0.00021999,120]
[339633584,1727771658973,500.0,0.00021999,120]
[339633585,1727771659234,500.0,0.00021999,120]
[339633586,1727771659502,500.0,0.00021999,120]
[339633587,1727771659804,155.76281687,0.00021999,120]
[339633593,1727771661903,500.0,0.00021999,120]
[339633595,1727771662185,500.0,0.00021999,120]
[339633597,1727771662500,501.1662994,0.00021999,120]
[339633607,1727771667669,500.0,0.00021999,120]
[339633608,1727771667937,500.0,0.00021999,120]
[339633609,1727771668210,500.0,0.00021999,120]
[339633610,1727771668511,500.0,0.00021999,120]
[339633611,1727771668776,292.34441394,0.00021999,120]
[339633616,1727771671404,500.63582507,0.00021999,120]